bitfinex/quotes_BTCUSD_20220212
["timestamp","ask_amount","ask_price","bid_price","bid_amount"]
[1644695478289,0.18235767,42667.0,42666.0,0.07887291]
[1644695478490,0.18235767,42667.0,42666.0,0.07887821]
[1644695478790,0.18235767,42667.0,42666.0,0.65575033]
[1644695479030,0.18235767,42667.0,42666.0,0.32818733]
[1644695479228,0.18235767,42667.0,42666.0,0.07887821]
[1644695479629,0.18235767,42667.0,42666.0,0.40644121]
[1644695479830,0.18235767,42667.0,42666.0,0.65575033]
[1644695480030,0.18235767,42667.0,42666.0,0.84279462]
[1644695480232,0.18235767,42667.0,42666.0,0.65575033]
[1644695480431,0.18235767,42667.0,42666.0,0.82745423]
[1644695480632,0.18235767,42667.0,42666.0,0.65575033]
[1644695480834,0.18235767,42667.0,42666.0,0.32818733]
[1644695481232,0.18235767,42667.0,42666.0,0.07887821]
[1644695481432,0.18235767,42667.0,42666.0,0.40644121]
[1644695481636,0.18235767,42667.0,42666.0,0.32818733]
[1644695483578,0.18235767,42667.0,42666.0,0.65575033]
[1644695483778,0.18235767,42667.0,42666.0,0.32818733]
[1644695484879,0.18235767,42667.0,42666.0,0.37804915]
[1644695486529,0.18235767,42667.0,42666.0,0.59103812]
[1644695486729,0.18235767,42667.0,42666.0,1.23624375]
[1644695487430,0.18235767,42667.0,42666.0,1.40794765]
[1644695487931,0.18235767,42667.0,42666.0,1.05891488]
[1644695490581,0.0005367,42669.0,42666.0,1.05891488]
[1644695490780,0.0005367,42669.0,42667.0,0.64514028]
[1644695490982,0.0005367,42669.0,42668.0,0.327563]
[1644695491181,0.0005367,42669.0,42668.0,0.64046373]
[1644695491381,0.00020911,42680.0,42668.0,0.69905173]
[1644695491582,0.181162,42680.0,42678.0,0.1911716]
[1644695491782,0.18137111,42680.0,42678.0,0.1911716]
[1644695491984,0.6481,42685.0,42678.0,0.1911716]
[1644695491985,0.00020911,42681.0,42678.0,0.1911716]
[1644695492292,0.8981,42685.0,42680.0,0.327563]
[1644695492293,0.2161536,42685.0,42680.0,0.327563]
[1644695492484,0.3,42691.0,42684.0,0.24918861]
[1644695492683,0.00020908,42689.0,42687.0,0.19934179]
[1644695492882,0.00020908,42691.0,42688.0,0.19934179]
[1644695493085,0.00020908,42690.0,42689.0,0.06714143]
[1644695493287,0.181162,42690.0,42685.0,0.19934179]
[1644695493488,0.181162,42689.0,42684.0,0.0525]
[1644695493689,0.00020908,42692.0,42684.0,0.0525]
[1644695493888,0.00020908,42690.0,42684.0,0.0525]
[1644695494137,0.00021267,42689.0,42684.0,0.0525]
[1644695494737,0.00021267,42689.0,42685.0,0.06702701]
[1644695495142,0.00020908,42691.0,42685.0,0.06702701]
[1644695495438,0.058578,42692.0,42685.0,0.06702701]
[1644695495439,0.00057757,42689.0,42685.0,0.06702701]
[1644695496238,0.00020908,42691.0,42685.0,0.06702701]
[1644695496437,0.00057757,42689.0,42685.0,0.06702701]
[1644695496638,0.00057757,42689.0,42686.0,0.19943445]
[1644695497443,0.00020908,42691.0,42686.0,0.19943445]
[1644695497640,0.00057756,42690.0,42686.0,0.19443445]
[1644695498580,0.00020908,42691.0,42686.0,0.19443445]
[1644695498781,0.05878708,42692.0,42686.0,0.19443445]
[1644695498982,0.00057756,42690.0,42686.0,0.19443445]
[1644695499382,0.00078664,42690.0,42686.0,0.19443445]
[1644695499583,0.00057756,42690.0,42686.0,0.19443445]
[1644695499783,0.00020908,42691.0,42686.0,0.19443445]
[1644695499986,0.00057756,42690.0,42686.0,0.19443445]
[1644695501083,0.00020908,42691.0,42686.0,0.19443445]
[1644695501282,0.00057756,42690.0,42686.0,0.19443445]
[1644695501530,0.00057756,42690.0,42686.0,0.19434839]
[1644695501730,0.00057756,42690.0,42686.0,0.45038564]
[1644695501930,0.00057756,42690.0,42686.0,0.45698369]
[1644695503431,0.00020908,42691.0,42686.0,0.45698369]
[1644695503730,0.00057756,42690.0,42686.0,0.45698369]
[1644695504532,0.00078664,42690.0,42686.0,0.45698369]
[1644695504731,0.00020908,42694.0,42686.0,0.45698369]
[1644695504930,0.00055621,42690.0,42686.0,0.45698369]
[1644695505793,0.00020908,42695.0,42686.0,0.45698369]
[1644695505990,0.21523942,42696.0,42686.0,0.45698369]
[1644695506192,0.00055621,42690.0,42686.0,0.45698369]
[1644695506393,0.00055621,42690.0,42686.0,0.19434839]
[1644695507093,0.20011531,42696.0,42686.0,0.19434839]
[1644695507393,0.00055621,42690.0,42686.0,0.15604383]
[1644695508195,0.00020929,42695.0,42686.0,0.15604383]
[1644695508396,0.48539374,42696.0,42686.0,0.15604383]
[1644695508597,0.00057756,42690.0,42680.0,0.0525]
[1644695508797,0.25321643,42689.0,42680.0,0.0525]
[1644695509237,0.25342572,42689.0,42680.0,0.0525]
[1644695509638,0.00057759,42687.0,42680.0,0.26871551]
[1644695509838,0.00057759,42687.0,42681.0,0.327563]
[1644695510039,0.00057759,42687.0,42680.0,0.26871551]
[1644695510040,0.00057759,42687.0,42680.0,0.21621551]
[1644695510239,0.00057759,42687.0,42681.0,0.327563]
[1644695510643,0.00020929,42688.0,42681.0,0.327563]
[1644695510840,0.00020929,42688.0,42680.0,0.21621551]
[1644695511041,0.00057759,42686.0,42681.0,0.327563]
[1644695511840,0.00020929,42688.0,42681.0,0.327563]
[1644695512039,0.0005776,42686.0,42681.0,0.327563]
[1644695512444,0.0005776,42686.0,42682.0,0.327563]
[1644695512884,0.25321643,42689.0,42680.0,0.21621551]
[1644695512885,0.24095564,42689.0,42680.0,0.21621551]
[1644695513084,0.0002093,42687.0,42681.0,0.327563]
[1644695513389,0.0002093,42689.0,42677.0,0.25184179]
[1644695513584,0.07660412,42690.0,42678.0,0.327563]
[1644695513785,0.0002093,42689.0,42678.0,0.327563]
[1644695513986,0.26260768,42690.0,42678.0,0.327563]
[1644695514184,0.26239838,42690.0,42683.0,0.24932917]
[1644695514785,0.26239838,42690.0,42678.0,0.28123747]
[1644695514988,0.058585,42688.0,42678.0,0.08189568]
[1644695515286,0.058585,42688.0,42679.0,0.327563]
[1644695515687,0.05879725,42688.0,42679.0,0.327563]
[1644695516086,0.05879725,42688.0,42678.0,0.24359188]
[1644695516386,0.05879725,42688.0,42679.0,0.327563]
[1644695516638,0.058585,42688.0,42679.0,0.327563]
[1644695516838,0.29771814,42688.0,42679.0,0.327563]
[1644695517638,0.05879726,42688.0,42679.0,0.327563]
[1644695517839,0.05879726,42688.0,42678.0,0.24359188]
[1644695517840,0.058585,42688.0,42678.0,0.24359188]
[1644695518038,0.05879726,42688.0,42679.0,0.327563]
[1644695518442,0.05879726,42688.0,42678.0,0.24359188]
[1644695518642,0.05879726,42688.0,42679.0,0.327563]
[1644695519045,0.058585,42688.0,42679.0,0.327563]
[1644695519243,0.05916309,42688.0,42679.0,0.327563]
[1644695519644,0.05916309,42688.0,42680.0,0.327563]
[1644695520144,0.05916309,42688.0,42679.0,0.52690479]
[1644695520401,0.0002093,42689.0,42678.0,0.44293367]
[1644695520601,0.00057809,42688.0,42679.0,0.327563]
[1644695521400,0.0002093,42689.0,42679.0,0.327563]
[1644695521600,0.00057809,42688.0,42678.0,0.44293367]
[1644695522000,0.00057809,42688.0,42679.0,0.327563]
[1644695522201,0.00057809,42688.0,42678.0,0.44293367]
[1644695522402,0.00057809,42688.0,42679.0,0.327563]
[1644695522601,0.0002093,42689.0,42678.0,0.44293367]
[1644695522801,0.00057809,42688.0,42678.0,0.44293367]
[1644695523002,0.00057809,42688.0,42679.0,0.327563]
[1644695523301,0.00057809,42688.0,42678.0,0.44293367]
[1644695523503,0.00057809,42688.0,42679.0,0.327563]
[1644695523702,0.00057809,42688.0,42678.0,0.44293367]
[1644695523902,0.0002093,42689.0,42679.0,0.52690479]
[1644695524142,0.07728559,42688.0,42679.0,0.19934179]
[1644695524343,0.07728559,42688.0,42678.0,0.44293367]
[1644695524743,0.07728559,42688.0,42680.0,0.19934179]
[1644695524944,0.07728559,42688.0,42678.0,0.24359188]
[1644695524945,0.07728559,42688.0,42679.0,0.19934179]
[1644695525142,0.0767075,42688.0,42679.0,0.19934179]
[1644695525442,0.07728559,42688.0,42679.0,0.19934179]
[1644695526047,0.07728559,42688.0,42680.0,0.19934179]
[1644695526246,0.0767075,42688.0,42680.0,0.19934179]
[1644695526447,0.00057809,42688.0,42681.0,0.327563]
[1644695526648,0.00057809,42688.0,42685.0,0.20601375]
[1644695527448,0.0002093,42689.0,42685.0,0.20601375]
[1644695527789,0.00057863,42689.0,42685.0,0.20601375]
[1644695527988,0.00078793,42689.0,42685.0,0.20601375]
[1644695528188,0.00078793,42689.0,42681.0,0.19934179]
[1644695528391,0.28335864,42689.0,42680.0,0.19934179]
[1644695528589,0.0002093,42689.0,42680.0,0.19934179]
[1644695528788,0.18600356,42690.0,42680.0,0.19934179]
[1644695528988,0.00057863,42688.0,42680.0,0.19934179]
[1644695529188,0.058586,42687.0,42680.0,0.19934179]
[1644695529390,0.058586,42687.0,42679.0,0.41149401]
[1644695529588,0.0587953,42687.0,42681.0,0.19934179]
[1644695529787,0.0002093,42687.0,42681.0,0.19934179]
[1644695529990,0.0002093,42689.0,42682.0,0.19934179]
[1644695530189,0.0002093,42687.0,42682.0,0.19934179]
[1644695530389,0.00057862,42688.0,42682.0,0.19934179]
[1644695530591,0.0002093,42687.0,42682.0,0.19934179]
[1644695530888,0.00057862,42688.0,42682.0,0.19934179]
[1644695531091,0.0002093,42689.0,42682.0,0.19934179]
[1644695531290,0.00057863,42688.0,42682.0,0.19934179]
[1644695532233,0.0002093,42689.0,42682.0,0.19934179]
[1644695532435,0.22124351,42690.0,42683.0,0.19934179]
[1644695532633,0.00057863,42688.0,42683.0,0.19934179]
[1644695533435,0.0002093,42689.0,42684.0,0.19934179]
[1644695533638,0.00057863,42688.0,42684.0,0.19934179]
[1644695533835,0.00057863,42688.0,42685.0,0.19934179]
[1644695534636,0.0002093,42689.0,42685.0,0.19934179]
[1644695534836,0.1813713,42689.0,42685.0,0.19934179]
[1644695535038,0.00078793,42689.0,42685.0,0.19934179]
[1644695535301,0.181162,42688.0,42685.0,0.19934179]
[1644695535493,0.28393329,42689.0,42683.0,0.19934179]
[1644695535692,0.0002093,42688.0,42683.0,0.19934179]
[1644695535893,0.181162,42688.0,42686.0,0.19934179]
[1644695536092,0.00078793,42688.0,42686.0,0.19934179]
[1644695536295,0.00057863,42688.0,42686.0,0.19934179]
[1644695536701,0.00057863,42688.0,42687.0,0.19934179]
[1644695537196,0.22124351,42690.0,42687.0,0.19934179]
[1644695537395,0.181162,42689.0,42687.0,0.19934179]
[1644695537596,0.0525,42690.0,42687.0,0.19938737]
[1644695537796,0.05271043,42690.0,42687.0,0.19938737]
[1644695537996,0.0525,42690.0,42687.0,0.19938737]
[1644695540561,0.0525,42690.0,42688.0,0.19938737]
[1644695540759,0.05271043,42690.0,42688.0,0.19938737]
[1644695540960,0.0525,42690.0,42688.0,0.19938737]
[1644695543190,0.0525,42690.0,42686.0,0.24208886]
[1644695543388,0.0525,42690.0,42688.0,0.19938471]
[1644695543389,0.05098002,42690.0,42688.0,0.19938471]
[1644695543588,0.05076959,42690.0,42688.0,0.19938471]
[1644695544989,0.05076959,42690.0,42686.0,0.49189843]
[1644695544990,0.03459514,42691.0,42689.0,0.27509077]
[1644695545192,0.00021043,42690.0,42689.0,0.27509077]
[1644695545389,0.03438471,42691.0,42689.0,0.07570606]
[1644695545589,0.03438471,42691.0,42689.0,0.27509077]
[1644695546089,0.03438471,42691.0,42689.0,0.07570606]
[1644695549742,0.03438471,42691.0,42688.0,0.19938471]
[1644695551192,0.03438471,42691.0,42688.0,0.26671316]
[1644695553095,0.03438471,42691.0,42688.0,0.19938471]
[1644695557149,0.03438471,42691.0,42687.0,0.28285158]
[1644695557349,0.03459514,42691.0,42687.0,0.28285158]
[1644695557792,0.03438471,42691.0,42687.0,0.28285158]
[1644695557993,0.03459514,42691.0,42687.0,0.28285158]
[1644695558892,0.03438471,42691.0,42687.0,0.28285158]
[1644695559092,0.03459514,42691.0,42687.0,0.28285158]
[1644695560095,0.03438471,42691.0,42687.0,0.28285158]
[1644695560294,0.03459514,42691.0,42687.0,0.28285158]
[1644695561296,0.03438471,42691.0,42687.0,0.28285158]
[1644695561545,0.03459514,42691.0,42687.0,0.27785158]
[1644695562545,0.03438471,42691.0,42687.0,0.08346687]
[1644695562748,0.03459514,42691.0,42687.0,0.08346687]
[1644695563847,0.00057859,42692.0,42687.0,0.08346687]
[1644695564651,0.00021043,42693.0,42687.0,0.08346687]
[1644695565051,0.0005786,42692.0,42687.0,0.08346687]
[1644695565487,0.00078903,42692.0,42687.0,0.08346687]
[1644695565690,0.0005786,42692.0,42687.0,0.08346687]
[1644695565887,0.00021043,42693.0,42687.0,0.08346687]
[1644695566089,0.0005786,42692.0,42687.0,0.08346687]
[1644695566488,0.058574,42695.0,42687.0,0.08346687]
[1644695566787,0.00021089,42692.0,42687.0,0.08346687]
[1644695566987,0.05878489,42695.0,42687.0,0.08346687]
[1644695567189,0.1976783,42694.0,42688.0,0.19938671]
[1644695567387,0.48360754,42694.0,42688.0,0.19938671]
[1644695567589,0.28592924,42694.0,42687.0,0.08346687]
[1644695567788,0.48361411,42694.0,42688.0,0.1993865]
[1644695567987,0.28592924,42694.0,42687.0,0.08346687]
[1644695568189,0.48361377,42694.0,42688.0,0.19938647]
[1644695568389,0.28592924,42694.0,42687.0,0.08346687]
[1644695568590,0.28650781,42694.0,42688.0,0.00057865]
[1644695568791,0.48420783,42694.0,42688.0,0.19996834]
[1644695569047,0.00078946,42694.0,42688.0,0.00057865]
[1644695569246,0.19849632,42694.0,42688.0,0.1999688]
[1644695569446,0.00021089,42694.0,42687.0,0.08346687]
[1644695569646,0.05878489,42695.0,42693.0,0.22122735]
[1644695569849,0.10785682,42690.0,42689.0,0.19992516]
[1644695570046,0.10785682,42690.0,42689.0,0.44589624]
[1644695570647,0.10785682,42690.0,42689.0,0.44535963]
[1644695572247,0.10785682,42690.0,42689.0,0.24597108]
[1644695573302,0.10785682,42690.0,42689.0,0.44535963]
[1644695576542,0.00021089,42693.0,42689.0,0.44535963]
[1644695576743,0.00021089,42694.0,42692.0,0.19938855]
[1644695576942,0.00021089,42693.0,42692.0,0.0060375]
[1644695577141,0.00021089,42696.0,42692.0,0.3334065]
[1644695577342,0.01,42699.0,42693.0,0.19938715]
[1644695577344,0.00021089,42697.0,42693.0,0.19938715]
[1644695577545,0.00021089,42698.0,42692.0,0.20542465]
[1644695577744,0.20770642,42699.0,42692.0,0.20542465]
[1644695577943,0.00021089,42698.0,42692.0,0.20542465]
[1644695578143,0.20770642,42699.0,42692.0,0.20542465]
[1644695578544,0.20770642,42699.0,42698.0,0.00947567]
[1644695578745,0.20770642,42699.0,42698.0,0.23733918]
[1644695579147,0.19770642,42699.0,42698.0,0.23733918]
[1644695579347,0.19770642,42700.0,42698.0,0.56470818]
[1644695579547,0.19770642,42700.0,42698.0,0.23733918]
[1644695580147,0.19770642,42701.0,42698.0,0.23733918]
[1644695580599,0.19824826,42701.0,42698.0,0.23733918]
[1644695581398,0.00054184,42701.0,42699.0,0.9]
[1644695581598,0.24665355,42707.0,42700.0,0.3]
[1644695581600,0.00021089,42703.0,42700.0,0.3]
[1644695581898,0.00054879,42702.0,42700.0,0.49938715]
[1644695582096,0.00054879,42702.0,42701.0,0.19938715]
[1644695582498,0.00054879,42702.0,42701.0,0.3]
[1644695582699,0.00021089,42706.0,42699.0,0.36900267]
[1644695582896,0.00021089,42704.0,42701.0,2.52313665]
[1644695583097,0.00054878,42704.0,42701.0,2.52313665]
[1644695583497,0.00054878,42704.0,42702.0,0.2889416]
[1644695584040,0.03578284,42709.0,42705.0,0.07758846]
[1644695584242,0.19770642,42712.0,42705.0,0.20905122]
[1644695584243,0.00021205,42707.0,42705.0,0.20905122]
[1644695584444,0.00021205,42711.0,42705.0,0.20905122]
[1644695584741,0.03578284,42709.0,42705.0,0.20905122]
[1644695584942,0.03818962,42712.0,42705.0,0.20905122]
[1644695585142,0.00021205,42711.0,42705.0,0.20905122]
[1644695585354,0.00054099,42709.0,42705.0,0.20905122]
[1644695585542,0.03632383,42709.0,42705.0,0.20905122]
[1644695586142,0.03632383,42709.0,42706.0,0.28256874]
[1644695586343,0.03599489,42709.0,42706.0,0.34849655]
[1644695586542,0.03632383,42709.0,42706.0,0.34849655]
[1644695587545,0.03578284,42709.0,42706.0,0.34849655]
[1644695587800,0.00075303,42710.0,42706.0,0.34849655]
[1644695587998,0.00054098,42710.0,42706.0,0.34849655]
[1644695588195,0.00054098,42710.0,42706.0,0.06592781]
[1644695588397,0.03632382,42710.0,42706.0,0.32421603]
[1644695588796,0.03578284,42710.0,42706.0,0.32421603]
[1644695588996,0.03628939,42710.0,42706.0,0.32421603]
[1644695589400,0.29598426,42723.0,42706.0,0.32421603]
[1644695589401,0.24665355,42722.0,42707.0,0.95]
[1644695589600,0.34531497,42727.0,42719.0,0.00603336]
[1644695589601,0.19743777,42725.0,42719.0,0.00603336]
[1644695589801,0.30598426,42729.0,42719.0,0.09398336]
[1644695589802,0.01,42729.0,42719.0,0.09398336]
[1644695589999,1.78681497,42738.0,42727.0,0.05]
[1644695590000,0.19750379,42735.0,42727.0,0.05]
[1644695590200,0.34531497,42742.0,42734.0,0.05]
[1644695590201,0.19750379,42742.0,42734.0,0.05]
[1644695590506,0.8793,42748.0,42735.0,0.73521788]
[1644695590699,0.8793,42748.0,42736.0,0.23301169]
[1644695590901,0.8793,42748.0,42737.0,0.0525]
[1644695591102,0.8793,42748.0,42737.0,0.07068]
[1644695591556,0.01,42749.0,42738.0,0.95]
[1644695591756,0.01,42749.0,42741.0,0.058486]
[1644695592156,0.01,42749.0,42738.0,0.46979515]
[1644695592555,0.01,42749.0,42738.0,0.3]
[1644695593454,0.07261519,42748.0,42738.0,0.3]
[1644695593855,0.00058323,42746.0,42738.0,0.3]
[1644695594655,0.00058323,42746.0,42740.0,0.08014765]
[1644695594856,0.01,42749.0,42740.0,0.08014765]
[1644695595055,0.00020941,42744.0,42741.0,0.26047952]
[1644695595300,0.00020941,42744.0,42741.0,0.26416938]
[1644695595895,0.01,42749.0,42741.0,0.26416938]
[1644695596095,0.23663861,42751.0,42747.0,0.00048213]
[1644695596096,0.18562235,42751.0,42747.0,0.00048213]
[1644695596297,0.26666277,42751.0,42747.0,0.00048213]
[1644695596697,0.058499,42750.0,42747.0,0.00048213]
[1644695598699,0.05265105,42750.0,42737.0,0.6525]
[1644695598899,0.05265105,42750.0,42738.0,0.29699477]
[1644695599345,0.05265105,42750.0,42738.0,0.46678992]
[1644695599842,0.00020936,42746.0,42738.0,0.57282192]
[1644695600043,0.05286432,42750.0,42749.0,0.00025286]
[1644695600246,0.04765105,42750.0,42749.0,0.00025286]
[1644695600646,0.23237603,42752.0,42749.0,0.00025286]
[1644695600647,0.00121327,42752.0,42749.0,0.00025286]
[1644695600851,0.001,42752.0,42749.0,0.00025286]
[1644695602552,0.01234082,42759.0,42752.0,0.00188806]
[1644695603191,0.01234082,42759.0,42758.0,0.08048265]
[1644695603192,0.01,42759.0,42758.0,0.08048265]
[1644695604192,0.116963,42767.0,42758.0,0.08048265]
[1644695604395,0.166963,42767.0,42758.0,0.08048265]
[1644695604595,0.05,42766.0,42758.0,0.08048265]
[1644695604793,1.237,42765.0,42758.0,0.08048265]
[1644695604996,1.287,42765.0,42758.0,0.08048265]
[1644695605596,0.058481,42764.0,42758.0,0.08048265]
[1644695607044,0.0005852,42763.0,42758.0,0.08048265]
[1644695607246,0.00079851,42763.0,42758.0,0.08048265]
[1644695608047,0.00021331,42763.0,42758.0,0.08048265]
[1644695608246,0.0005852,42763.0,42758.0,0.08048265]
[1644695608448,0.00079851,42763.0,42758.0,0.08048265]
[1644695608846,0.058481,42764.0,42758.0,0.08048265]
[1644695608847,0.05427951,42764.0,42758.0,0.08048265]
[1644695609047,0.116963,42767.0,42758.0,0.08048265]
[1644695609048,0.116963,42767.0,42759.0,0.20596866]
[1644695609248,0.058476,42768.0,42759.0,0.00602925]
[1644695610047,0.058476,42768.0,42762.0,0.23894155]
[1644695610300,0.1304752,42761.0,42759.0,0.00602925]
[1644695611294,0.1304752,42761.0,42759.0,0.21105126]
[1644695613191,0.1304752,42761.0,42758.0,0.08048265]
[1644695616445,0.1304752,42761.0,42752.0,0.00188806]
[1644695616748,0.058488,42759.0,42756.0,0.00058607]
[1644695617544,0.058488,42759.0,42752.0,0.00188806]
[1644695617806,0.058488,42759.0,42755.0,0.00058607]
[1644695618202,0.0525,42758.0,42755.0,0.00058607]
[1644695618802,0.25781101,42754.0,42752.0,0.00188806]
[1644695619004,0.32721295,42753.0,42752.0,0.00188806]
[1644695619205,1.43673,42753.0,42752.0,0.00188806]
[1644695619409,0.00179194,42752.0,42749.0,0.00025286]
[1644695619606,0.7065,42750.0,42728.0,0.3965]
[1644695619902,0.42621669,42740.0,42728.0,0.3965]
[1644695620103,0.0525,42739.0,42729.0,0.5]
[1644695620302,1.237,42738.0,42729.0,0.5]
[1644695620501,0.0525,42737.0,42729.0,0.5]
[1644695620701,0.05271345,42737.0,42729.0,0.5]
[1644695620903,0.05271345,42737.0,42726.0,0.25356283]
[1644695621106,0.21208524,42737.0,42726.0,0.25356283]
[1644695621750,0.21391587,42733.0,42726.0,0.25356283]
[1644695621955,0.0525,42732.0,42726.0,0.25356283]
[1644695622150,0.34953566,42732.0,42726.0,0.25356283]
[1644695622349,0.05271345,42732.0,42726.0,0.25356283]
[1644695622550,0.3440733,42732.0,42726.0,0.25356283]
[1644695622950,0.3440733,42732.0,42719.0,0.015]
[1644695623150,0.3440733,42732.0,42724.0,0.08010951]
[1644695623552,0.3440733,42732.0,42719.0,0.015]
[1644695623952,0.3440733,42732.0,42726.0,0.00056063]
[1644695623953,0.4026013,42732.0,42726.0,0.00056063]
[1644695624954,0.4026013,42732.0,42722.0,0.08800126]
[1644695624955,0.11124145,42732.0,42722.0,0.08800126]
[1644695625152,0.11124145,42732.0,42727.0,0.00056062]
[1644695626098,0.11124145,42732.0,42729.0,0.08839557]
[1644695626298,0.111028,42732.0,42729.0,0.08839557]
[1644695626897,0.111028,42732.0,42727.0,0.00037783]
[1644695627101,0.11124145,42732.0,42727.0,0.00037783]
[1644695627298,0.11124145,42732.0,42719.0,0.2471407]
[1644695627500,0.11124145,42732.0,42727.0,0.00037783]
[1644695628498,0.11124145,42732.0,42719.0,0.2471407]
[1644695628699,0.11124145,42732.0,42727.0,0.07599497]
[1644695629257,0.11124145,42732.0,42727.0,0.00058617]
[1644695629663,0.11124145,42732.0,42719.0,0.25317462]
[1644695629859,0.111028,42732.0,42727.0,0.00058617]
[1644695630059,0.08391354,42734.0,42727.0,0.00058617]
[1644695630259,0.05271448,42733.0,42727.0,0.00058617]
[1644695630467,0.0525,42733.0,42727.0,0.00058617]
[1644695630660,0.05271448,42733.0,42727.0,0.00058617]
[1644695630860,0.058528,42732.0,42720.0,0.20532296]
[1644695631067,0.058528,42732.0,42728.0,0.00058617]
[1644695632062,0.058528,42732.0,42725.0,0.06595418]
[1644695632264,0.058528,42732.0,42728.0,0.00058617]
[1644695633597,0.0525,42733.0,42728.0,0.00058617]
[1644695634194,0.0525,42733.0,42728.0,1.69576573]
[1644695634494,0.0525,42733.0,42728.0,1.69517956]
[1644695634694,0.0525,42733.0,42728.0,0.00058616]
[1644695635699,0.0525,42733.0,42725.0,0.06595418]
[1644695635898,0.0525,42733.0,42728.0,0.00058616]
[1644695636943,0.0525,42733.0,42727.0,0.23142034]
[1644695637143,0.0525,42733.0,42728.0,0.00058616]
[1644695637650,0.00021448,42735.0,42732.0,0.08475453]
[1644695637843,0.05873148,42736.0,42732.0,0.08475453]
[1644695639447,0.05873148,42736.0,42732.0,0.08534066]
[1644695640299,0.05873148,42736.0,42732.0,0.07934066]
[1644695640498,0.05873148,42736.0,42732.0,0.07875453]
[1644695640896,0.1966685,42733.0,42732.0,0.07875453]
[1644695641194,0.1966685,42733.0,42725.0,0.1991953]
[1644695641394,0.058524,42731.0,42724.0,0.1991953]
[1644695641594,0.00444114,42731.0,42724.0,0.1991953]
[1644695641994,0.1966685,42733.0,42724.0,0.1941953]
[1644695642195,0.1966685,42733.0,42727.0,0.06509436]
[1644695642395,0.20442489,42737.0,42727.0,0.06509436]
[1644695642897,0.058519,42734.0,42727.0,0.06509436]
[1644695643095,0.058519,42734.0,42730.0,0.00055817]
[1644695644153,0.058519,42734.0,42727.0,0.06509436]
[1644695644353,0.058519,42734.0,42722.0,0.48205827]
[1644695645155,0.0525,42733.0,42722.0,0.48205827]
[1644695645353,0.0525,42733.0,42723.0,0.08602973]
[1644695646453,0.19437778,42729.0,42723.0,0.08602973]
[1644695647154,0.19437778,42729.0,42720.0,0.24923569]
[1644695647356,0.20576732,42728.0,42719.0,0.24923569]
[1644695647558,0.0525,42727.0,42718.0,0.1171]
[1644695647810,0.12908,42727.0,42718.0,0.1171]
[1644695648001,0.12908,42727.0,42721.0,0.00058539]
[1644695648802,0.12908,42727.0,42715.0,0.0011]
[1644695648803,0.21226258,42722.0,42715.0,0.0011]
[1644695649002,0.19848017,42720.0,42715.0,0.0011]
[1644695649202,0.19190017,42720.0,42715.0,0.0011]
[1644695650202,0.19190017,42720.0,42715.0,0.00168545]
[1644695650606,0.18032844,42720.0,42715.0,0.00168545]
[1644695651003,0.23282844,42720.0,42715.0,0.00168545]
[1644695651203,0.23282844,42720.0,42715.0,0.0011]
[1644695651404,0.23282844,42720.0,42715.0,0.00168545]
[1644695652463,0.23282844,42720.0,42715.0,0.0011]
[1644695652663,0.23282844,42720.0,42715.0,0.00168545]
[1644695653365,0.0525,42720.0,42715.0,0.00168545]
[1644695653760,0.0525,42720.0,42715.0,0.0011]
[1644695653960,0.0525,42720.0,42715.0,0.00168545]
[1644695654963,0.0525,42720.0,42715.0,0.0011]
[1644695655165,0.0525,42720.0,42715.0,0.00168545]
[1644695656104,0.0525,42720.0,42715.0,0.0011]
[1644695656305,0.0525,42720.0,42715.0,0.00168545]
[1644695657307,0.0525,42720.0,42715.0,0.0011]
[1644695657509,0.0525,42720.0,42715.0,0.00168545]
[1644695658110,0.34820879,42720.0,42715.0,0.00168545]
[1644695658310,0.0525,42720.0,42715.0,0.00168545]
[1644695658512,0.0525,42720.0,42715.0,0.0011]
[1644695658710,0.0525,42720.0,42715.0,0.00168545]
[1644695659754,0.0525,42720.0,42715.0,0.0011]
[1644695659955,0.0525,42720.0,42715.0,0.00168545]
[1644695660155,0.26250998,42722.0,42715.0,0.00168545]
[1644695660354,0.0525,42720.0,42715.0,0.00168545]
[1644695660554,0.0525,42719.0,42715.0,0.00168545]
[1644695660756,0.2674602,42723.0,42715.0,0.00168545]
[1644695660956,0.05854,42721.0,42715.0,0.0011]
[1644695661157,0.05854,42721.0,42715.0,0.00168545]
[1644695661358,0.05854,42721.0,42715.0,0.20051286]
[1644695662157,0.05854,42721.0,42715.0,0.0011]
[1644695662158,0.29637745,42720.0,42715.0,0.0011]
[1644695662358,0.29637745,42720.0,42716.0,0.00058544]
[1644695663496,0.0525,42719.0,42716.0,0.00058544]
[1644695664496,0.0525,42719.0,42715.0,0.0011]
[1644695664697,0.0525,42719.0,42715.0,0.00168545]
[1644695665697,0.0525,42719.0,42715.0,0.0011]
[1644695665899,0.0525,42719.0,42715.0,0.00168545]
[1644695666201,0.0525,42719.0,42716.0,2.29983895]
[1644695666755,0.05854,42721.0,42716.0,2.29983895]
[1644695667855,0.05854,42721.0,42716.0,2.50663575]
[1644695668256,0.05854,42721.0,42716.0,2.50722119]
[1644695668458,0.058534,42724.0,42716.0,2.50722119]
[1644695669156,0.058534,42724.0,42716.0,2.75645688]
[1644695669356,0.058534,42724.0,42716.0,2.50663575]
[1644695669556,0.0525,42729.0,42716.0,2.50663575]
[1644695669557,0.058529,42729.0,42718.0,0.24982111]
[1644695669759,0.058529,42729.0,42724.0,0.07945997]
[1644695670301,0.26590299,42732.0,42724.0,0.07945997]
[1644695670701,0.26590299,42732.0,42724.0,0.08004534]
[1644695671702,0.26590299,42732.0,42722.0,0.20244131]
[1644695671904,0.26590299,42732.0,42726.0,0.00058535]
[1644695672906,0.26590299,42732.0,42722.0,0.20244131]
[1644695673104,0.26590299,42732.0,42727.0,0.00058535]
[1644695673304,0.38296099,42732.0,42727.0,0.00058535]
[1644695674043,0.38296099,42732.0,42722.0,0.20244131]
[1644695674242,0.38296099,42732.0,42727.0,0.00058534]
[1644695675245,0.38296099,42732.0,42722.0,0.20244131]
[1644695675445,0.38296099,42732.0,42727.0,0.00058534]
[1644695676064,0.37296099,42732.0,42727.0,0.00058534]
[1644695676446,0.37296099,42732.0,42722.0,0.20244131]
[1644695676748,0.107058,42732.0,42727.0,0.00058534]
[1644695676950,0.3662,42735.0,42727.0,0.00058534]
[1644695677149,0.1129,42739.0,42727.0,0.00058534]
[1644695677150,0.171416,42739.0,42727.0,0.00058534]
[1644695677449,0.171416,42739.0,42728.0,0.19896988]
[1644695677645,0.058516,42739.0,42728.0,0.19896988]
[1644695677903,0.32135428,42739.0,42731.0,0.00058531]
[1644695678905,0.32135428,42739.0,42729.0,0.22572914]
[1644695679106,0.32135428,42739.0,42733.0,0.00058529]
[1644695679805,0.30225245,42738.0,42733.0,0.00058529]
[1644695680207,0.117059,42736.0,42725.0,0.19896988]